bitfinex/quotes_ETHUSD_20241019
["timestamp","ask_amount","ask_price","bid_price","bid_amount"]
[1729298376546,0.28300219,2637.1,2636.4,1.2345214]
[1729298376741,0.28300219,2637.0,2636.4,1.2345214]
[1729298376981,0.28300219,2636.9,2636.4,1.2345214]
[1729298377185,0.28300219,2636.8,2636.4,1.2345214]
[1729298377481,1.98121885,2637.5,2636.4,1.2345214]
[1729298377683,0.71915384,2637.4,2636.4,1.2345214]
[1729298377870,0.90680809,2637.3,2636.4,1.2345214]
[1729298378183,0.71914355,2637.2,2636.4,1.2345214]
[1729298378351,0.63676697,2637.1,2636.4,1.2345214]
[1729298378542,0.28300925,2637.0,2636.4,1.2345214]
[1729298378746,0.28300925,2636.9,2636.4,1.2345214]
[1729298378959,0.27003727,2637.3,2636.4,1.2345214]
[1729298378960,0.28300925,2636.8,2636.4,1.2345214]
[1729298379157,0.28300925,2636.7,2636.4,1.2345214]
[1729298379365,0.27003727,2637.3,2636.4,1.2345214]
[1729298379545,0.08234185,2636.6,2636.4,1.2345214]
[1729298379767,0.27003727,2637.3,2636.4,1.2345214]
[1729298380089,0.63677624,2637.2,2636.4,1.2345214]
[1729298380284,0.36537949,2637.1,2636.4,1.2345214]
[1729298380448,0.2830119,2637.0,2636.4,1.2345214]
[1729298380778,0.27003727,2637.3,2636.4,1.2345214]
[1729298380779,0.36536919,2636.9,2636.4,1.2345214]
[1729298380987,0.2830119,2636.8,2636.4,1.2345214]
[1729298381148,0.27003727,2637.3,2636.4,1.2345214]
[1729298381351,0.28301766,2637.2,2636.4,1.2345214]
[1729298381553,0.28301766,2637.1,2636.4,1.2345214]
[1729298381869,0.28301766,2637.0,2636.4,1.2345214]
[1729298382182,0.27003727,2637.3,2636.4,1.2345214]
[1729298382183,0.36537495,2636.9,2636.4,1.2345214]
[1729298382359,0.28301766,2636.8,2636.4,1.2345214]
[1729298382555,0.28301766,2636.7,2636.4,1.2345214]
[1729298382770,0.28301766,2636.6,2636.4,1.2345214]
[1729298382944,2.2510058,2637.3,2636.4,1.2345214]
[1729298383148,0.08241989,2636.5,2636.4,1.2345214]
[1729298383419,0.22510058,2637.2,2636.4,1.2345214]
[1729298383581,0.63676342,2637.1,2636.4,1.2345214]
[1729298383773,0.28300607,2637.0,2636.4,1.2345214]
[1729298384107,0.28300607,2636.9,2636.4,1.2345214]
[1729298384290,0.28300607,2636.8,2636.4,1.2345214]
[1729298384491,0.28300607,2636.7,2636.4,1.2345214]
[1729298384701,0.28300607,2636.6,2636.4,1.2345214]
[1729298384998,0.22510058,2637.2,2636.4,1.2345214]
[1729298385361,0.71647132,2637.1,2636.4,1.2345214]
[1729298385571,0.28300657,2637.0,2636.4,1.2345214]
[1729298385867,0.28300202,2636.9,2636.4,1.2345214]
[1729298386207,0.36269279,2636.8,2636.4,1.2345214]
[1729298386504,0.28300202,2636.7,2636.4,1.2345214]
[1729298386712,0.28300202,2636.6,2636.4,1.2345214]
[1729298386913,0.22510058,2637.2,2636.4,1.2345214]
[1729298387082,0.63676156,2637.1,2636.4,1.2345214]
[1729298387413,0.36270623,2637.0,2636.4,1.2345214]
[1729298387573,0.28300516,2636.9,2636.4,1.2345214]
[1729298387772,0.28300516,2636.8,2636.4,1.2345214]
[1729298388088,0.28300516,2636.7,2636.4,1.2345214]
[1729298388412,0.28300516,2636.6,2636.4,1.2345214]
[1729298388614,1.98089985,2637.3,2636.4,1.2345214]
[1729298388916,0.83478893,2637.2,2636.4,1.2345214]
[1729298389117,0.27783948,2637.2,2636.4,1.2345214]
[1729298389413,0.63669454,2637.1,2636.4,1.2345214]
[1729298389570,0.63669454,2637.0,2636.4,1.2345214]
[1729298389773,0.28297535,2636.9,2636.4,1.2345214]
[1729298389998,0.28297535,2636.8,2636.4,1.2345214]
[1729298390214,0.28297535,2636.7,2636.4,1.2345214]
[1729298390514,0.28297535,2636.6,2636.4,1.2345214]
[1729298390689,0.19808999,2637.2,2636.4,1.2345214]
[1729298390889,0.71643217,2637.1,2636.4,1.2345214]
[1729298391120,0.63668782,2637.0,2636.4,1.2345214]
[1729298391276,0.28297236,2636.9,2636.4,1.2345214]
[1729298391611,0.36270127,2636.8,2636.4,1.2345214]
[1729298391817,0.28297236,2636.7,2636.4,1.2345214]
[1729298392122,0.28297236,2636.6,2636.4,1.2345214]
[1729298392279,0.19808999,2637.2,2636.4,1.2345214]
[1729298392481,0.71639855,2637.1,2636.4,1.2345214]
[1729298392704,0.6366542,2637.0,2636.4,1.2345214]
[1729298392914,0.36269147,2636.9,2636.4,1.2345214]
[1729298393129,0.28296106,2636.8,2636.4,1.2345214]
[1729298393412,0.28296106,2636.7,2636.4,1.2345214]
[1729298393578,0.28296106,2636.6,2636.4,1.2345214]
[1729298393779,0.19808999,2637.2,2636.4,1.2345214]
[1729298393983,0.282962,2636.9,2636.4,1.2345214]
[1729298394319,0.36268586,2636.8,2636.4,1.2345214]
[1729298394488,0.28295695,2636.7,2636.4,1.2345214]
[1729298394695,0.28295695,2636.6,2636.4,1.2345214]
[1729298395020,0.282962,2636.9,2636.4,1.2345214]
[1729298395217,0.28296101,2636.8,2636.4,1.2345214]
[1729298395381,0.28296101,2636.7,2636.4,1.2345214]
[1729298395581,0.28296101,2636.6,2636.4,1.2345214]
[1729298395776,0.282962,2636.9,2636.4,1.2345214]
[1729298395982,0.28297084,2636.8,2636.4,1.2345214]
[1729298396215,0.28297084,2636.7,2636.4,1.2345214]
[1729298396417,0.07972891,2636.8,2636.4,1.2345214]
[1729298396418,0.28297084,2636.6,2636.4,1.2345214]
[1729298396592,0.28297084,2636.5,2636.4,1.2345214]
[1729298396782,0.28297084,2636.8,2636.4,1.2345214]
[1729298396984,0.07971346,2636.5,2636.4,1.2345214]
[1729298397221,0.28297084,2636.5,2636.4,1.2345214]
[1729298397518,0.28297084,2636.8,2636.4,1.2345214]
[1729298397816,0.28298076,2636.7,2636.5,0.07584898]
[1729298397973,0.28298076,2636.6,2636.5,0.07584898]
[1729298399822,0.28298076,2636.6,2636.4,1.2345214]
[1729298400027,0.282962,2636.9,2636.4,1.2345214]
[1729298400224,0.28298902,2636.8,2636.4,1.2345214]
[1729298400523,0.28298902,2636.7,2636.4,1.2345214]
[1729298400817,0.28298902,2636.6,2636.4,1.2345214]
[1729298400994,0.282962,2636.9,2636.4,1.2345214]
[1729298401317,0.2829904,2636.8,2636.4,1.2345214]
[1729298401479,0.2829904,2636.7,2636.4,1.2345214]
[1729298401684,0.2829904,2636.6,2636.4,1.2345214]
[1729298402024,0.282962,2636.9,2636.4,1.2345214]
[1729298402258,0.28298764,2636.8,2636.4,1.2345214]
[1729298402559,0.28298764,2636.7,2636.4,1.2345214]
[1729298402760,0.28298764,2636.6,2636.4,1.2345214]
[1729298403056,0.282962,2636.9,2636.4,1.2345214]
[1729298403259,0.28300385,2636.8,2636.4,1.2345214]
[1729298403425,0.28300385,2636.7,2636.4,1.2345214]
[1729298403632,0.28300385,2636.6,2636.4,1.2345214]
[1729298403817,0.282962,2636.9,2636.4,1.2345214]
[1729298404014,0.28301066,2636.8,2636.4,1.2345214]
[1729298404214,0.28301066,2636.7,2636.4,1.2345214]
[1729298404416,0.28301066,2636.6,2636.4,1.2345214]
[1729298404651,0.282962,2636.9,2636.4,1.2345214]
[1729298404858,0.28301876,2636.8,2636.4,1.2345214]
[1729298405034,0.28301876,2636.7,2636.4,1.2345214]
[1729298405232,0.28301876,2636.6,2636.4,1.2345214]
[1729298405420,0.282962,2636.9,2636.4,1.2345214]
[1729298405622,0.28302896,2636.8,2636.4,1.2345214]
[1729298405852,0.28302896,2636.7,2636.4,1.2345214]
[1729298406057,0.28302896,2636.6,2636.4,1.2345214]
[1729298406219,0.282962,2636.9,2636.4,1.2345214]
[1729298406421,0.28304014,2636.8,2636.4,1.2345214]
[1729298406733,0.28304014,2636.7,2636.4,1.2345214]
[1729298406930,0.28304014,2636.6,2636.4,1.2345214]
[1729298407243,0.282962,2636.9,2636.4,1.2345214]
[1729298407760,0.3627604,2636.8,2636.4,1.2345214]
[1729298407954,0.07970464,2636.8,2636.4,1.2345214]
[1729298408260,0.28305569,2636.7,2636.4,1.2345214]
[1729298408558,0.28305569,2636.6,2636.4,1.2345214]
[1729298408855,0.28305569,2636.5,2636.4,1.2345214]
[1729298409517,0.282962,2636.9,2636.4,1.2345214]
[1729298409722,0.36277136,2636.8,2636.5,0.7588]
[1729298409925,0.28306672,2636.7,2636.5,0.7588]
[1729298410160,0.07970464,2636.8,2636.5,0.7588]
[1729298410161,2.34396209,2637.4,2636.5,0.7588]
[1729298410330,0.07970474,2636.6,2636.5,0.7588]
[1729298410534,2.34396209,2637.4,2636.5,0.7588]
[1729298410743,0.07970474,2636.6,2636.5,0.7588]
[1729298410944,2.57878443,2637.4,2636.5,0.7588]
[1729298411148,0.07970474,2636.6,2636.5,0.7588]
[1729298411323,2.34438822,2637.4,2636.5,0.7588]
[1729298411519,0.71669019,2637.3,2636.5,0.7588]
[1729298411725,0.63694942,2637.2,2636.5,0.7588]
[1729298411924,0.36281911,2637.1,2636.5,0.7588]
[1729298412250,0.28308863,2637.0,2636.5,0.7588]
[1729298412562,0.362771,2637.4,2636.6,0.7836614]
[1729298412563,0.36280882,2636.9,2636.6,0.7836614]
[1729298412735,0.28308863,2636.8,2636.6,0.7836614]
[1729298412941,0.07971504,2636.8,2636.6,0.7836614]
[1729298413135,0.362771,2637.4,2636.6,0.7836614]
[1729298413369,0.07970989,2636.7,2636.6,0.7588]
[1729298413533,0.362771,2637.4,2636.6,0.7588]
[1729298413858,0.63695384,2637.3,2636.8,0.813]
[1729298414057,0.28309064,2637.2,2636.8,0.813]
[1729298414257,0.28309064,2637.1,2636.8,0.813]
[1729298414463,0.362771,2637.4,2636.8,0.813]
[1729298414464,0.28309064,2637.0,2636.8,0.813]
[1729298414761,0.28309064,2636.9,2636.8,0.813]
[1729298415263,0.362771,2637.4,2636.8,0.813]
[1729298415462,0.2830713,2636.9,2636.8,0.813]
[1729298417063,0.362771,2637.4,2636.8,0.813]
[1729298417267,0.362771,2637.4,2636.9,0.86136416]
[1729298417268,0.28307034,2637.3,2636.9,0.86136416]
[1729298417420,0.28307034,2637.2,2636.9,0.813]
[1729298417624,1.98137686,2637.9,2637.0,0.86140134]
[1729298417861,0.83497748,2637.8,2637.0,0.86140134]
[1729298418025,0.63683979,2637.7,2637.0,0.813]
[1729298418235,0.28303993,2637.6,2637.0,0.813]
[1729298418569,0.28303993,2637.5,2637.0,0.813]
[1729298418740,0.28303993,2637.4,2637.0,0.813]
[1729298418924,1.9811228,2638.2,2637.2,0.813]
[1729298419128,0.71127221,2638.1,2637.4,0.813]
[1729298419324,0.63677088,2638.0,2637.4,0.813]
[1729298419629,0.71126192,2637.9,2637.5,0.05760874]
[1729298419831,0.28300928,2637.8,2637.5,0.05760874]
[1729298420053,0.28300928,2637.7,2637.5,0.05760874]
[1729298420370,0.35748489,2637.6,2637.4,0.813]
[1729298420666,0.28300928,2637.5,2637.4,0.813]
[1729298421066,0.3577647,2637.5,2637.4,0.813]
[1729298422360,0.07475542,2637.5,2637.4,0.813]
[1729298422569,1.98032212,2638.3,2637.4,0.813]
[1729298422724,0.07475542,2637.5,2637.4,0.813]
[1729298422924,0.19803221,2638.2,2637.4,0.813]
[1729298423123,0.7109359,2638.1,2637.4,0.813]
[1729298423427,0.63609775,2638.0,2637.4,0.813]
[1729298423631,0.28273316,2637.9,2637.4,0.813]
[1729298423928,0.28273316,2637.8,2637.4,0.813]
[1729298424140,0.35749887,2637.7,2637.4,0.813]
[1729298424369,0.28273316,2637.6,2637.4,0.813]
[1729298424528,0.07476057,2637.6,2637.4,0.813]
[1729298424746,0.19803221,2638.2,2637.4,0.813]
[1729298425071,0.07475542,2637.5,2637.4,0.813]
[1729298425291,0.19803221,2638.2,2637.4,0.813]
[1729298425584,0.63584686,2638.1,2637.4,0.813]
[1729298425782,0.2825986,2638.0,2637.4,0.813]
[1729298425965,0.2825986,2637.9,2637.4,0.813]
[1729298426280,0.2825986,2637.8,2637.4,0.813]
[1729298426577,0.35736431,2637.7,2637.4,0.813]
[1729298426783,0.07476571,2637.7,2637.4,0.813]
[1729298426988,0.19803221,2638.2,2637.4,0.813]
[1729298427277,0.07476057,2637.6,2637.4,0.813]
[1729298427577,0.07475542,2637.5,2637.4,0.813]
[1729298427787,0.19803221,2638.2,2637.4,0.813]
[1729298427986,0.07475542,2637.5,2637.4,0.813]
[1729298428183,0.19803221,2638.2,2637.4,0.813]
[1729298428483,0.07475542,2637.5,2637.4,0.813]
[1729298428686,0.19803221,2638.2,2637.4,0.813]
[1729298428878,0.07475542,2637.5,2637.4,0.813]
[1729298429043,0.19803221,2638.2,2637.4,0.813]
[1729298429250,0.07475542,2637.5,2637.4,0.813]
[1729298429878,0.19803221,2638.2,2636.8,0.8156]
[1729298430084,0.0747589,2637.5,2636.8,0.8156]
[1729298430385,0.19803221,2638.2,2636.8,0.8156]
[1729298430683,0.63558196,2638.1,2636.8,0.8156]
[1729298430893,0.63558196,2638.0,2636.8,0.8156]
[1729298431078,0.63558196,2637.9,2636.8,0.8156]
[1729298431254,0.28248087,2637.8,2636.8,0.8156]
[1729298431448,0.28248087,2637.7,2636.8,0.8156]
[1729298431657,0.28248087,2637.6,2636.8,0.8156]
[1729298432200,0.28248087,2637.5,2636.8,0.8156]
[1729298432486,0.22501978,2638.1,2636.8,0.8156]
[1729298432644,0.63565952,2638.0,2636.8,0.8156]
[1729298432848,0.63565952,2637.9,2636.8,0.8156]
[1729298433050,0.28251492,2637.8,2636.8,0.8156]
[1729298433348,0.28251492,2637.7,2636.8,0.8156]
[1729298433562,0.28251492,2637.6,2636.8,0.8156]
[1729298433803,0.28251492,2637.5,2636.8,0.8156]
[1729298433968,0.22501978,2638.1,2636.8,0.8156]
[1729298434166,0.11371819,2637.4,2636.8,0.8156]
[1729298434384,0.22501978,2638.1,2636.8,0.8156]
[1729298434609,0.11371452,2637.3,2636.8,0.8156]
[1729298434765,0.22501978,2638.1,2636.8,0.8156]
[1729298434969,0.11371086,2637.2,2636.8,0.8156]
[1729298435268,0.22501978,2638.1,2636.8,0.8156]
[1729298435490,0.63584794,2638.0,2636.8,0.8156]
[1729298435681,0.63584794,2637.9,2636.8,0.8156]
[1729298435879,0.28259908,2637.8,2636.8,0.8156]
[1729298436090,0.28259908,2637.7,2636.8,0.8156]
[1729298436376,0.28259908,2637.6,2636.8,0.8156]
[1729298436677,0.28259908,2637.5,2636.8,0.8156]
[1729298436999,0.22501978,2638.1,2636.8,0.8156]
[1729298437206,0.11371819,2637.4,2636.8,0.8156]
[1729298437403,0.22501978,2638.1,2636.7,0.8156]
[1729298437582,0.11371452,2637.3,2636.7,0.8156]
[1729298437780,0.22501978,2638.1,2636.7,0.8156]
[1729298437986,0.11371086,2637.2,2636.7,0.8156]
[1729298438219,2.20239565,2638.1,2636.7,0.8156]
[1729298438422,0.11370719,2637.1,2636.7,0.8156]
[1729298438582,2.66543277,2638.0,2636.7,0.8156]
[1729298438912,0.11365486,2637.0,2636.7,0.8156]
[1729298439217,2.38284805,2638.0,2636.7,0.8156]
[1729298439387,0.11365119,2636.9,2636.7,0.8156]
[1729298439586,2.38342874,2638.0,2636.7,0.8156]
[1729298439888,0.11364752,2636.8,2636.7,0.8156]
[1729298440089,2.38342874,2638.0,2636.7,0.8156]
[1729298440308,0.63586975,2637.9,2636.7,0.8156]
[1729298440528,0.63586975,2637.8,2636.7,0.8156]
[1729298440699,0.63586975,2637.7,2636.7,0.8156]
[1729298440879,0.28260878,2637.6,2636.7,0.8156]
[1729298441216,0.11367319,2637.5,2636.7,0.8156]
[1729298441374,0.39628197,2637.5,2636.7,0.8156]
[1729298441580,0.28260878,2637.4,2636.7,0.8156]
[1729298441791,0.3962783,2637.4,2636.7,0.8156]
[1729298441973,0.28260878,2637.3,2636.7,0.8156]
[1729298442178,1.97795656,2637.9,2636.7,0.8156]
[1729298442483,0.11361356,2637.2,2636.7,0.8156]
[1729298442694,1.97795656,2637.9,2636.7,0.8156]
[1729298442893,0.6358581,2637.8,2636.7,0.8156]
[1729298443078,0.89723957,2637.7,2636.7,0.8156]
[1729298443415,0.74948632,2637.6,2636.7,0.8156]
[1729298443642,0.28260355,2637.5,2636.7,0.8156]
[1729298443840,0.28260355,2637.4,2636.7,0.8156]
[1729298443993,0.39622444,2637.4,2636.7,0.8156]
[1729298444345,0.28260355,2637.3,2636.7,0.8156]
[1729298444699,0.11361356,2637.2,2636.7,0.8156]
[1729298445140,0.28268591,2637.1,2636.7,0.8156]
[1729298445322,0.26138147,2637.7,2636.7,0.8156]
[1729298445645,0.7495859,2637.6,2636.7,0.8156]
[1729298445851,0.28264786,2637.5,2636.8,0.07583985]
[1729298446010,0.28264786,2637.4,2636.8,0.07583985]
[1729298446226,0.11362089,2637.4,2636.7,0.8156]
[1729298446514,0.28264786,2637.3,2636.7,0.8156]
[1729298447042,0.28264786,2637.2,2636.7,0.8156]
[1729298447270,1.97858404,2637.9,2636.7,0.8156]
[1729298447416,0.63600255,2637.8,2636.7,0.8156]
[1729298447616,0.63600255,2637.7,2636.7,0.8156]
[1729298447856,0.90882476,2637.6,2636.7,0.8156]
[1729298448006,0.28267126,2637.5,2636.7,0.8156]
[1729298448206,0.28267126,2637.4,2636.7,0.8156]
[1729298448410,0.28267126,2637.3,2636.7,0.8156]
[1729298448957,0.28267126,2637.2,2636.7,0.8156]
[1729298449149,0.28267126,2637.1,2636.7,0.8156]
[1729298449354,1.97873341,2637.8,2636.7,0.8156]
[1729298449515,0.7497296,2637.7,2636.7,0.8156]
[1729298449714,0.63609771,2637.6,2636.7,0.8156]
[1729298449951,1.97873341,2637.8,2636.7,0.8156]
[1729298449952,0.74972227,2637.5,2636.7,0.8156]
[1729298450112,0.39633465,2637.5,2636.7,0.8156]
[1729298450315,0.63613717,2637.4,2636.7,0.8156]
[1729298450685,0.74973191,2637.3,2636.7,0.8156]
[1729298450809,0.28272135,2637.2,2636.7,0.8156]
[1729298451031,0.28272135,2637.1,2636.7,0.8156]
[1729298451236,0.28272135,2637.0,2636.7,0.8156]
[1729298451432,0.28272135,2636.9,2636.7,0.8156]
[1729298451664,0.28272135,2636.8,2636.7,0.8156]
[1729298452070,0.39618815,2636.8,2636.7,0.8156]
[1729298456341,0.1134668,2636.8,2636.7,0.8156]
[1729298456585,1.97911351,2637.5,2636.7,0.8156]
[1729298456785,0.11338685,2636.8,2636.7,0.8156]
[1729298456981,0.19791135,2637.4,2636.7,0.8156]
[1729298457279,0.11338685,2636.8,2636.7,0.8156]
[1729298457481,0.19411135,2637.4,2636.7,0.8156]
[1729298457676,0.11338685,2636.8,2636.7,0.8156]
[1729298457881,0.19411135,2637.4,2636.7,0.8156]
[1729298458084,0.11338685,2636.8,2636.7,0.8156]
[1729298458246,0.19411135,2637.4,2636.7,0.8156]
[1729298458438,0.11338685,2636.8,2636.7,0.8156]
[1729298458689,0.19411135,2637.4,2636.7,0.8156]
[1729298458919,0.11338685,2636.8,2636.7,0.8156]
[1729298459127,0.19411135,2637.4,2636.7,0.8156]
[1729298459428,0.74929828,2637.3,2636.7,0.8156]
[1729298459629,0.28261915,2637.2,2636.7,0.8156]
[1729298459937,0.28261915,2637.1,2636.7,0.8156]
[1729298460089,0.28261915,2637.0,2636.7,0.8156]
[1729298460289,0.28261915,2636.9,2636.7,0.8156]
[1729298460617,0.11338685,2636.8,2636.7,0.8156]
[1729298460817,0.19411135,2637.4,2636.7,0.8156]
[1729298461019,0.11338685,2636.8,2636.7,0.8156]
[1729298461317,0.19411135,2637.4,2636.7,0.8156]
[1729298461517,0.63585531,2637.3,2636.7,0.8156]
[1729298461708,0.28260245,2637.2,2636.7,0.8156]
[1729298462037,0.3960003,2637.1,2636.7,0.8156]
[1729298462370,0.28260245,2637.0,2636.7,0.8156]
[1729298462647,0.28260245,2636.9,2636.7,0.8156]
[1729298462830,0.11339052,2636.9,2636.7,0.8156]
[1729298463013,0.19411135,2637.4,2636.7,0.8156]
[1729298463224,0.11338685,2636.8,2636.7,0.8156]
[1729298463446,0.19411135,2637.4,2636.7,0.8156]
[1729298463622,0.11326868,2636.8,2636.7,0.8156]
[1729298463943,0.28253216,2636.8,2636.7,0.8156]
[1729298464306,1.97808078,2637.5,2636.7,0.8156]
[1729298464510,0.83351931,2637.4,2636.7,0.8156]
[1729298464739,0.63571123,2637.3,2636.7,0.8156]
[1729298464942,0.28253972,2637.2,2636.7,0.8156]
[1729298465151,0.28253972,2637.1,2636.7,0.8156]
[1729298465347,0.28253972,2637.0,2636.7,0.8156]
[1729298465525,0.28253972,2636.9,2636.7,0.8156]
[1729298465844,0.11326868,2636.8,2636.7,0.8156]
[1729298466141,0.19780808,2637.4,2636.7,0.8156]
[1729298466441,0.74901548,2637.3,2636.7,0.8156]
[1729298466745,0.28254598,2637.2,2636.7,0.8156]
[1729298466935,0.28254598,2637.1,2636.7,0.8156]
[1729298467137,0.28254598,2637.0,2636.7,0.8156]
[1729298467308,0.28254598,2636.9,2636.7,0.8156]
[1729298467621,0.11327235,2636.9,2636.7,0.8156]
[1729298467823,0.19780808,2637.4,2636.7,0.8156]
[1729298468023,0.11326868,2636.8,2636.7,0.8156]
[1729298468226,0.19780808,2637.4,2636.7,0.8156]
[1729298468414,0.11326868,2636.8,2636.7,0.8156]
[1729298468615,0.19780808,2637.4,2636.7,0.8156]
[1729298468840,0.10947939,2636.8,2636.7,0.8156]
[1729298469036,0.28256924,2637.2,2636.7,0.8156]
[1729298469228,0.10947939,2636.8,2636.7,0.8156]
[1729298469426,0.28256924,2637.0,2636.7,0.8156]
[1729298469736,0.105648,2636.8,2636.7,0.8156]
[1729298469952,0.19780808,2637.4,2636.7,0.8156]
[1729298470258,0.74148085,2637.3,2636.7,0.8156]
[1729298470558,0.28258423,2637.2,2636.7,0.8156]
[1729298470762,0.28258423,2637.1,2636.7,0.8156]
[1729298470947,0.28258423,2637.0,2636.7,0.8156]
[1729298471562,0.10565167,2636.9,2636.7,0.8156]
[1729298471756,0.28258423,2636.8,2636.7,0.8156]
[1729298472135,0.38823223,2636.8,2636.7,0.8156]
[1729298472339,0.38830017,2636.8,2636.7,0.8156]
[1729298473964,0.105648,2636.8,2636.7,0.8156]
[1729298474264,1.9782144,2637.6,2636.7,0.8156]
[1729298474566,0.1056445,2636.8,2636.7,0.8156]
[1729298474734,9.4482144,2637.7,2636.7,0.8156]
[1729298474941,0.63619144,2637.6,2636.7,0.8156]
[1729298475133,0.63619144,2637.5,2636.7,0.8156]
[1729298475343,0.63619144,2637.4,2636.7,0.8156]
[1729298475540,0.28275177,2637.3,2636.7,0.8156]
[1729298475764,0.28275177,2637.2,2636.7,0.8156]
[1729298476072,0.28275177,2637.1,2636.7,0.8156]
[1729298476364,0.26144058,2637.6,2636.7,0.8156]
[1729298476563,0.63638446,2637.5,2636.7,0.8156]
[1729298476769,0.63638446,2637.4,2636.7,0.8156]
[1729298476968,0.28283353,2637.3,2636.7,0.8156]
[1729298477137,0.28283353,2637.2,2636.7,0.8156]
[1729298477372,0.28283353,2637.1,2636.7,0.8156]
[1729298477565,0.28283353,2637.0,2636.7,0.8156]
[1729298477772,0.28283353,2636.9,2636.7,0.8156]
[1729298478104,2.24154707,2637.6,2636.7,0.8156]
[1729298478268,0.63644434,2637.5,2636.7,0.8156]
[1729298478482,0.63644434,2637.4,2636.7,0.8156]
[1729298478799,0.28286025,2637.3,2636.7,0.8156]
[1729298478954,0.28286025,2637.2,2636.7,0.8156]
[1729298479155,0.28286025,2637.1,2636.7,0.8156]
[1729298479361,0.28286025,2637.0,2636.7,0.8156]
[1729298479596,1.98010649,2637.7,2636.7,0.8156]
[1729298479760,0.63656335,2637.6,2636.7,0.8156]
[1729298479955,0.63656335,2637.5,2636.7,0.8156]
[1729298480155,1.98010649,2637.7,2636.7,0.8156]
[1729298480472,0.7423122,2637.6,2636.7,0.8156]
[1729298480668,0.63657553,2637.5,2636.7,0.8156]
[1729298480856,0.63657553,2637.4,2636.7,0.8156]
[1729298481058,0.28292254,2637.3,2636.7,0.8156]
[1729298481257,0.28292254,2637.2,2636.7,0.8156]
[1729298481585,0.28292254,2637.1,2636.7,0.8156]
[1729298481914,0.28292254,2637.0,2636.7,0.8156]
[1729298482215,1.98010649,2637.7,2636.7,0.8156]
[1729298482355,0.63674773,2637.6,2636.7,0.8156]
[1729298482556,0.63674773,2637.5,2636.7,0.8156]
[1729298482782,0.63674773,2637.5,2636.4,0.4526214]
[1729298482783,0.63674773,2637.4,2636.8,0.7812]
[1729298482986,0.28299886,2637.3,2636.8,0.7812]
[1729298483192,0.28299886,2637.2,2636.8,0.7812]
[1729298483385,0.28299886,2637.1,2636.8,0.7812]
[1729298483708,0.38872049,2637.0,2636.8,0.7812]
[1729298484091,1.98010649,2637.7,2636.8,0.7812]
[1729298484258,0.10571797,2636.9,2636.8,0.7812]
[1729298484566,2.37612779,2637.9,2636.8,0.7812]
[1729298484567,1.98010649,2637.7,2636.8,0.7812]
[1729298484767,0.10571797,2636.9,2636.8,0.7812]
[1729298484977,1.98010649,2637.7,2636.8,0.7812]
[1729298485174,0.63686645,2637.6,2636.5,0.7812]
[1729298485374,0.63686645,2637.5,2636.5,0.7812]
[1729298485666,0.74260275,2637.4,2636.7,0.7812]
[1729298485894,0.28305188,2637.3,2636.8,0.7812]
[1729298486071,0.28305188,2637.2,2636.8,0.7812]
[1729298486372,1.98145953,2637.9,2636.8,0.7812]
[1729298486696,2.7242084,2637.8,2636.8,0.7812]
[1729298486897,2.61834571,2637.7,2636.8,0.7812]
[1729298487201,0.63688618,2637.6,2636.8,0.7812]
[1729298487363,0.63688618,2637.5,2636.8,0.7812]
[1729298487564,0.63688618,2637.4,2636.8,0.7812]
[1729298487765,0.28305083,2637.3,2636.8,0.7812]
[1729298487993,0.28305083,2637.2,2636.8,0.7812]
[1729298488195,0.28305083,2637.1,2636.8,0.7812]
[1729298488402,0.28305083,2637.0,2636.8,0.7812]
[1729298488565,0.28305083,2636.9,2636.8,0.7812]
[1729298488871,0.38898871,2636.9,2636.8,0.7812]
[1729298489693,0.10593788,2636.9,2636.8,0.7812]
[1729298489898,0.28303918,2636.9,2636.8,0.7812]
[1729298490102,0.38894216,2636.9,2636.8,0.7812]
[1729298491567,0.10590298,2636.9,2636.8,0.7812]
[1729298491764,0.38894326,2636.9,2636.8,0.7812]
[1729298494214,0.38894326,2636.9,2636.3,0.7683]
[1729298494382,0.28304028,2636.8,2636.3,3.7683]
[1729298494581,0.28304028,2636.7,2636.3,0.7683]
[1729298494806,0.28304028,2636.6,2636.3,0.7683]
[1729298494965,1.98124551,2637.3,2636.3,1.21664552]
[1729298495167,0.83493147,2637.2,2636.3,1.21664552]
[1729298495476,0.30397219,2637.2,2636.3,1.21664552]
[1729298495681,0.63679867,2637.1,2636.3,1.21664552]
[1729298495883,0.63679867,2637.0,2636.3,1.21664552]
[1729298496139,0.28302163,2636.9,2636.3,1.21664552]
[1729298496403,0.28302163,2636.8,2636.3,1.21664552]
[1729298496709,0.38885094,2636.7,2636.3,1.21664552]
[1729298497003,0.28302163,2636.6,2636.3,1.21664552]
[1729298497188,0.28302163,2636.5,2636.3,1.21664552]
[1729298497376,0.19812455,2637.2,2636.3,1.21664552]
[1729298497581,2.61799213,2637.1,2636.3,1.21664552]
[1729298497812,0.63674662,2637.0,2636.3,1.21664552]
[1729298497967,0.63674662,2636.9,2636.3,1.21664552]
[1729298498299,0.2829985,2636.8,2636.3,1.21664552]
[1729298498621,0.2829985,2636.7,2636.3,1.21664552]
[1729298498769,0.2829985,2636.6,2636.3,1.21664552]
[1729298498972,0.2829985,2636.5,2636.3,1.21664552]
[1729298499304,0.10582197,2636.5,2636.3,1.21664552]
[1729298499476,1.98088208,2637.2,2636.3,1.21664552]
[1729298499809,0.1058183,2636.4,2636.3,1.21664552]
[1729298500036,1.98088208,2637.2,2636.3,1.21664552]
[1729298500324,0.83475395,2637.1,2636.3,1.21664552]
[1729298500487,0.63666574,2637.0,2636.3,1.21664552]
[1729298500688,0.63666574,2636.9,2636.3,1.21664552]
[1729298500926,0.28296255,2636.8,2636.3,1.21664552]
[1729298501129,0.28296255,2636.7,2636.3,1.21664552]
[1729298501287,0.28296255,2636.6,2636.3,1.21664552]
[1729298501631,0.28296255,2636.5,2636.3,1.21664552]
[1729298501812,0.10582564,2636.6,2636.3,1.21664552]
[1729298501998,0.38876686,2636.5,2636.3,1.21664552]
[1729298502323,0.10582197,2636.5,2636.3,1.21664552]
[1729298502540,0.19808821,2637.1,2636.3,1.21664552]
[1729298502741,0.1058183,2636.4,2636.3,1.21664552]
[1729298503036,1.98088208,2637.2,2636.3,1.21664552]
[1729298503395,0.28292674,2637.1,2636.3,1.21664552]
[1729298503604,0.28292674,2637.0,2636.3,1.21664552]
[1729298503937,0.63658517,2636.9,2636.3,1.21664552]
[1729298504108,0.28292674,2636.8,2636.3,1.21664552]
[1729298504309,0.28292674,2636.7,2636.3,1.21664552]
[1729298504513,0.28292674,2636.6,2636.3,1.21664552]